[Event "Lliga Catalana Relegation 2024"]
[Site "Catalonia"]
[Date "2024.04.06"]
[Round "1.8"]
[White "Serra Canals, Oriol"]
[Black "Parra Dolz, Mario"]
[Result "1-0"]
[ECO "D47"]
[WhiteElo "2111"]
[BlackElo "2084"]
[Annotator "RC"]
[PlyCount "149"]
[EventDate "2024.01.18"]
[EventType "team-tourn"]
[EventCountry "ESP"]
[SourceTitle "playchess.com"]
[Source "ChessBase"]
[SourceQuality "1"]
[TimeControl "5400+30"]

1. d4 {[%emt 0:00:19]} d5 {[%emt 0:00:23]} 2. c4 {[%emt 0:00:14]} e6 {[%emt 0:00:11]} 3. Nf3 {[%emt 0:00:09]} Nf6 {[%emt 0:00:06]} 4. Nc3 {[%emt 0:01:49]} c6 {[%emt 0:00:07]} 5. e3 {[%emt 0:01:00]} Nbd7 {[%emt 0:04:47]} 6. Bd3 {[%emt 0:05:47]} dxc4 {[%emt 0:01:22]} 7. Bxc4 {[%emt 0:00:05]} b5 {[%emt 0:00:08]} 8. Be2 {[%emt 0:01:05]} Bb7 {[%emt 0:01:02]} 9. O-O {[%emt 0:00:55]} Bd6 {[%emt 0:03:26]} 10. Qc2 {[%emt 0:08:08]} b4 {[%emt 0:08:56]} 11. Nb1 {[%emt 0:10:12]} c5 {[%emt 0:06:43]} 12. Nbd2 {[%emt 0:21:36]} Rc8 {[%emt 0:07:46]} 13. Qa4 {[%emt 0:02:58]} O-O {[%emt 0:15:45]} 14. Qxa7 {[%emt 0:03:26]} Bc6 {[%emt 0:05:20]} 15. Qa6 {[%emt 0:03:42]} Qc7 {[%emt 0:11:36]} 16. b3 {[%emt 0:02:01]} cxd4 {[%emt 0:01:32]} 17. exd4 {[%emt 0:00:31]} e5 {[%emt 0:01:16]} 18. Bb2 {[%emt 0:35:33]} e4 {[%emt 0:12:33]} 19. Ne5 {[%emt 0:00:00]} Nxe5 {[%emt 0:02:02]} 20. dxe5 {[%emt 0:00:00]} Bxe5 {[%emt 0:00:06]} 21. Bxe5 {[%emt 0:00:00]} Qxe5 {[%emt 0:00:03]} 22. Nc4 {[%emt 0:00:00]} Qf4 {[%emt 0:03:27]} 23. Rad1 {[%emt 0:00:00]} Nd5 {[%emt 0:00:58]} 24. Nb6 {[%emt 0:00:00]} Nc7 {[%emt 0:02:13]} 25. Qa7 {[%emt 0:00:00]} Rb8 {[%emt 0:00:46]} 26. g3 {[%emt 0:00:00]} Qe5 {[%emt 0:01:41]} 27. Rc1 {[%emt 0:00:00]} Rb7 {[%emt 0:00:55]} 28. Nc4 {[%emt 0:00:00]} Qe7 {[%emt 0:01:51]} 29. Qd4 {[%emt 0:00:00]} Nb5 {[%emt 0:02:46]} 30. Qe5 {[%emt 0:00:00]} Nc3 {[%emt 0:00:09]} 31. Rxc3 {[%emt 0:00:30]} bxc3 {[%emt 0:00:24]} 32. Qxc3 {[%emt 0:06:30]} Bb5 {[%emt 0:01:44]} 33. a4 {[%emt 0:00:00]} Ba6 {[%emt 0:00:02]} 34. Rb1 {[%emt 0:00:00]} Rfb8 {[%emt 0:01:11]} 35. Qc2 {[%emt 0:00:00]} Rb4 {[%emt 0:00:38]} 36. Na5 {[%emt 0:00:00]} Bxe2 {[%emt 0:02:08]} 37. Nc6 {[%emt 0:00:00]} Qc7 {[%emt 0:01:04]} 38. Nxb4 {[%emt 0:00:00]} Qxc2 {[%emt 0:00:05]} 39. Nxc2 {[%emt 0:00:00]} Bd3 {[%emt 0:00:18]} 40. Rb2 {[%emt 0:00:00]} f5 {[%emt 0:00:04]} 41. Ne3 {[%emt 0:00:00]} g6 {[%emt 0:00:11]} 42. b4 {[%emt 0:00:00]} Kf7 {[%emt 0:00:13]} 43. b5 {[%emt 0:00:00]} Ke6 {[%emt 0:00:05]} 44. f3 {[%emt 0:00:40]} exf3 {[%emt 0:00:20]} 45. Kf2 {[%emt 0:00:02]} Be2 {[%emt 0:00:22]} 46. Nc2 {[%emt 0:00:24]} Bd1 {[%emt 0:02:06]} 47. Nd4+ {[%emt 0:00:19]} Kd5 {[%emt 0:00:12]} 48. Nc6 {[%emt 0:00:02]} Ra8 {[%emt 0:00:59]} 49. Rd2+ {[%emt 0:00:02]} Kc5 {[%emt 0:00:10]} 50. Rxd1 {[%emt 0:00:04]} Rxa4 {[%emt 0:00:03]} 51. Rb1 {[%emt 0:00:33]} Kb6 {[%emt 0:00:20]} 52. Kxf3 {[%emt 0:00:25]} g5 {[%emt 0:00:11]} 53. Ne7 {[%emt 0:01:01]} Ra3+ {[%emt 0:00:13]} 54. Kf2 {[%emt 0:00:04]} f4 {[%emt 0:00:07]} 55. gxf4 {[%emt 0:00:12]} Ra2+ {[%emt 0:00:20]} 56. Kf3 {[%emt 0:01:34]} gxf4 {[%emt 0:00:30]} 57. Nd5+ {[%emt 0:01:00]} Kb7 {[%emt 0:00:10]} 58. h4 {[%emt 0:03:29]} Rh2 {[%emt 0:00:19]} 59. Kg4 {[%emt 0:00:04]} f3 {[%emt 0:00:13]} 60. Kg3 {[%emt 0:00:51]} Rd2 {[%emt 0:00:15]} 61. Ne3 {[%emt 0:00:33]} f2 {[%emt 0:00:28]} 62. Ng4 {[%emt 0:00:14]} Rb2 {[%emt 0:00:43]} 63. Rf1 {[%emt 0:00:34]} Rxb5 {[%emt 0:01:49]} 64. Rxf2 {[%emt 0:00:07]} Kc6 {[%emt 0:00:08]} 65. Rd2 {[%emt 0:00:06]} h5 {[%emt 0:00:23]} 66. Nf6 {[%emt 0:04:40]} Rf5 {[%emt 0:00:16]} 67. Ne4 {[%emt 0:00:00]} Ra5 {[%emt 0:00:32]} 68. Kf4 {[%emt 0:00:00]} Ra1 {[%emt 0:05:18]} 69. Kg5 {[%emt 0:00:00]} Ra5+ {[%emt 0:00:00]} 70. Kh6 {[%emt 0:00:00]} Ra4 {[%emt 0:00:00]} 71. Re2 {[%emt 0:00:00]} Ra5 {[%emt 0:00:00]} 72. Ng5 {[%emt 0:00:00]} Kd6 {[%emt 0:00:00]} 73. Kxh5 {[%emt 0:00:00]} Ra4 {[%emt 0:00:00]} 74. Re4 {[%emt 0:00:00]} Ra6 {[%emt 0:00:00]} 75. Re6+ {[%emt 0:00:00]} 1-0

[Event "Lliga Catalana Relegation 2024"]
[Site "Catalonia"]
[Date "2024.03.16"]
[Round "1.8"]
[White "Garcia Gallardo, Victor"]
[Black "Martin Perez, Pau"]
[Result "1-0"]
[ECO "B07"]
[WhiteElo "2081"]
[BlackElo "2039"]
[Annotator "NA RC"]
[PlyCount "59"]
[EventDate "2024.01.18"]
[EventType "team-tourn"]
[EventCountry "ESP"]
[SourceTitle "playchess.com"]
[Source "ChessBase"]
[SourceQuality "1"]
[TimeControl "5400+30"]

1. e4 {[%emt 0:31:00]} d6 {[%emt 0:00:21]} 2. Bc4 {[%emt 0:01:30]} Nd7 {[%emt 0:03:29]} 3. Nc3 {[%emt 0:00:14]} g6 {[%emt 0:00:38]} 4. f4 {[%emt 0:00:56]} Bg7 {[%emt 0:00:49]} 5. Nf3 {[%emt 0:00:18]} c6 {[%emt 0:01:06]} 6. O-O {[%emt 0:15:47]} Nb6 {[%emt 0:17:07]} 7. Bb3 {[%emt 0:00:18]} Nf6 {[%emt 0:04:08]} 8. d3 {[%emt 0:00:52]} O-O {[%emt 0:01:41]} 9. Qe1 {[%emt 0:00:13]} d5 {[%emt 0:05:57]} 10. a4 {[%emt 0:00:57]} a5 {[%emt 0:05:20]} 11. Qh4 {[%emt 0:00:17]} e6 {[%emt 0:09:45]} 12. f5 {[%emt 0:01:40]} exf5 {[%emt 0:01:28]} 13. Bg5 {[%emt 0:00:29]} h6 {[%emt 0:07:08]} 14. Bxh6 {[%emt 0:00:17]} Bxh6 {[%emt 0:00:37]} 15. Qxh6 {[%emt 0:00:21]} Ng4 {[%emt 0:00:43]} 16. Qf4 {[%emt 0:01:15]} Qe7 {[%emt 0:12:29]} 17. Rae1 {[%emt 0:03:42]} dxe4 {[%emt 0:05:22]} 18. h3 {[%emt 0:01:35]} Qc5+ {[%emt 0:02:23]} 19. d4 {[%emt 0:00:30]} Qb4 {[%emt 0:00:23]} 20. hxg4 {[%emt 0:00:24]} exf3 {[%emt 0:00:38]} 21. Na2 {[%emt 0:11:47]} Nd5 {[%emt 0:07:26]} 22. Bxd5 {[%emt 0:00:16]} Qxa4 {[%emt 0:00:51]} 23. Bb3 {[%emt 0:00:36]} Qb5 {[%emt 0:00:30]} 24. Nc3 {[%emt 0:00:33]} Qb4 {[%emt 0:00:16]} 25. Na2 {[%emt 0:07:23]} Qb5 {[%emt 0:00:16]} 26. Qh6 {[%emt 0:00:50]} fxg2 {[%emt 0:07:35]} 27. Qxg6+ {[%emt 0:00:42]} Kh8 {[%emt 0:00:07]} 28. Qf6+ {[%emt 0:00:51]} Kh7 {[%emt 0:00:19]} 29. Kxg2 {[%emt 0:00:29]} Be6 {[%emt 0:00:30]} 30. Rh1+ {[%emt 0:00:06]} 1-0

[Event "Lliga Catalana Relegation 2024"]
[Site "Catalonia"]
[Date "2024.04.06"]
[Round "1.9"]
[White "Lambert Pont, Michael"]
[Black "Pla Almenar, Nel"]
[Result "1-0"]
[ECO "A46"]
[WhiteElo "1983"]
[BlackElo "2071"]
[Annotator "RC"]
[PlyCount "59"]
[EventDate "2024.01.18"]
[EventType "team-tourn"]
[EventCountry "ESP"]
[SourceTitle "playchess.com"]
[Source "ChessBase"]
[SourceQuality "1"]
[TimeControl "5400+30"]

1. d4 {[%emt 1:31:00]} Nf6 {[%emt 1:31:00]} 2. Bf4 {[%emt 0:00:30]} e6 {[%emt 0:00:30]} 3. Nf3 {[%emt 0:00:30]} c5 {[%emt 0:00:30]} 4. e3 {[%emt 0:00:30]} cxd4 {[%emt 0:00:30]} 5. exd4 {[%emt 0:00:30]} b6 {[%emt 0:00:30]} 6. Nbd2 {[%emt 0:00:30]} Be7 {[%emt 0:00:30]} 7. h3 {[%emt 0:00:30]} O-O {[%emt 0:00:30]} 8. a4 {[%emt 0:00:30]} d6 {[%emt 0:00:30]} 9. c3 {[%emt 0:00:30]} Ba6 {[%emt 0:00:30]} 10. Bb5 {[%emt 0:00:30]} Bxb5 {[%emt 0:00:30]} 11. axb5 {[%emt 0:00:30]} Nd5 {[%emt 0:00:30]} 12. Bg3 {[%emt 0:00:30]} Qd7 {[%emt 0:00:30]} 13. Qe2 {[%emt 0:00:30]} Nc7 {[%emt 0:00:30]} 14. c4 {[%emt 0:00:30]} a6 {[%emt 0:00:30]} 15. bxa6 {[%emt 0:00:30]} Rxa6 {[%emt 0:00:30]} 16. O-O {[%emt 0:00:30]} Rxa1 {[%emt 0:00:30]} 17. Rxa1 {[%emt 0:00:30]} Nc6 {[%emt 0:00:30]} 18. Qd3 {[%emt 0:00:30]} h6 {[%emt 0:00:30]} 19. Qb3 {[%emt 0:00:30]} Rb8 {[%emt 0:00:30]} 20. d5 {[%emt 0:00:30]} Nd8 {[%emt 0:00:30]} 21. Ra7 {[%emt 0:00:30]} exd5 {[%emt 0:00:30]} 22. cxd5 {[%emt 0:00:30]} b5 {[%emt 0:00:30]} 23. Ne4 {[%emt 0:00:30]} Rb7 {[%emt 0:00:30]} 24. Ra1 {[%emt 0:00:30]} Rb6 {[%emt 0:00:30]} 25. Nd4 {[%emt 0:00:30]} Nb7 {[%emt 0:00:30]} 26. Ra7 {[%emt 0:00:30]} f5 {[%emt 0:00:30]} 27. Nc3 {[%emt 0:00:30]} Bf6 {[%emt 0:00:30]} 28. Ne6 {[%emt 0:00:30]} Bxc3 {[%emt 0:00:30]} 29. Qxc3 {[%emt 0:00:30]} Ne8 {[%emt 0:00:30]} 30. Qe3 {[%emt 0:00:30]} 1-0

[Event "Lliga Catalana Relegation 2024"]
[Site "Catalonia"]
[Date "2024.03.16"]
[Round "1.9"]
[White "Boix Redorta, Roc"]
[Black "Gonzalez Cuervo, Eloy"]
[Result "1-0"]
[ECO "B48"]
[WhiteElo "1957"]
[BlackElo "2046"]
[Annotator "NA RC"]
[PlyCount "93"]
[EventDate "2024.01.18"]
[EventType "team-tourn"]
[EventCountry "ESP"]
[SourceTitle "playchess.com"]
[Source "ChessBase"]
[SourceQuality "1"]
[TimeControl "5400+30"]

1. e4 {[%emt 0:00:02]} c5 {[%emt 0:00:07]} 2. Nf3 {[%emt 0:00:03]} e6 {[%emt 0:00:07]} 3. d4 {[%emt 0:00:54]} cxd4 {[%emt 0:00:06]} 4. Nxd4 {[%emt 0:00:02]} a6 {[%emt 0:00:09]} 5. Nc3 {[%emt 0:00:06]} Qc7 {[%emt 0:00:13]} 6. Bd3 {[%emt 0:00:08]} Nc6 {[%emt 0:00:35]} 7. Nb3 {[%emt 0:00:23]} Bd6 {[%emt 0:00:32]} 8. Be3 {[%emt 0:01:49]} Nf6 {[%emt 0:01:15]} 9. Qe2 {[%emt 0:00:53]} Ne5 {[%emt 0:01:28]} 10. h3 {[%emt 0:00:42]} b5 {[%emt 0:02:05]} 11. Bxb5 {[%emt 0:18:54]} axb5 {[%emt 0:03:28]} 12. Nxb5 {[%emt 0:00:10]} Qb8 {[%emt 0:00:09]} 13. Nxd6+ {[%emt 0:03:23]} Qxd6 {[%emt 0:00:28]} 14. f4 {[%emt 0:00:01]} Nxe4 {[%emt 0:09:00]} 15. fxe5 {[%emt 0:01:58]} Qxe5 {[%emt 0:00:25]} 16. O-O-O {[%emt 0:03:34]} Ng3 {[%emt 0:10:47]} 17. Qf3 {[%emt 0:05:08]} Rxa2 {[%emt 0:00:19]} 18. Bd4 {[%emt 0:00:58]} Ne2+ {[%emt 0:04:22]} 19. Kb1 {[%emt 0:00:02]} Nxd4 {[%emt 0:00:07]} 20. Nxd4 {[%emt 0:00:10]} Qa5 {[%emt 0:01:06]} 21. Nb3 {[%emt 0:00:06]} Qa7 {[%emt 0:01:20]} 22. Rd6 {[%emt 0:02:28]} O-O {[%emt 0:02:04]} 23. Rhd1 {[%emt 0:00:51]} Bb7 {[%emt 0:00:48]} 24. Qd3 {[%emt 0:02:20]} Ra8 {[%emt 0:01:19]} 25. c4 {[%emt 0:00:54]} f5 {[%emt 0:08:10]} 26. Rxd7 {[%emt 0:00:48]} Be4 {[%emt 0:00:19]} 27. Rxa7 {[%emt 0:01:13]} R2xa7 {[%emt 0:00:07]} 28. Qxe4 {[%emt 0:00:12]} fxe4 {[%emt 0:00:07]} 29. Re1 {[%emt 0:00:33]} Rf7 {[%emt 0:03:04]} 30. Rxe4 {[%emt 0:03:14]} Rf1+ {[%emt 0:00:41]} 31. Kc2 {[%emt 0:00:05]} Rf2+ {[%emt 0:00:11]} 32. Kc3 {[%emt 0:00:49]} Rxg2 {[%emt 0:00:30]} 33. Nd4 {[%emt 0:00:40]} Rb8 {[%emt 0:01:30]} 34. Nb5 {[%emt 0:00:20]} Rg3+ {[%emt 0:03:07]} 35. Kb4 {[%emt 0:00:30]} Kf7 {[%emt 0:00:12]} 36. c5 {[%emt 0:02:19]} Ke7 {[%emt 0:00:41]} 37. Kc4 {[%emt 0:01:25]} Rxh3 {[%emt 0:02:34]} 38. b4 {[%emt 0:00:06]} g5 {[%emt 0:01:28]} 39. Nd4 {[%emt 0:00:04]} Rh4 {[%emt 0:01:24]} 40. Rxe6+ {[%emt 0:00:30]} Kd7 {[%emt 0:00:07]} 41. Rd6+ {[%emt 0:00:09]} Kc7 {[%emt 0:00:46]} 42. b5 {[%emt 0:00:09]} h5 {[%emt 0:13:34]} 43. b6+ {[%emt 0:00:34]} Kb7 {[%emt 0:03:32]} 44. Rd7+ {[%emt 0:01:02]} Kc8 {[%emt 0:00:04]} 45. Rc7+ {[%emt 0:00:06]} Kd8 {[%emt 0:00:05]} 46. Kd5 {[%emt 0:00:08]} Rh1 {[%emt 0:01:32]} 47. Nc6+ {[%emt 0:53:05]} 1-0

[Event "Lliga Catalana Relegation 2024"]
[Site "Catalonia"]
[Date "2024.03.16"]
[Round "1.10"]
[White "Zamudio Diaz, Angel"]
[Black "Casares Bonals, Ainhoa"]
[Result "1/2-1/2"]
[ECO "B12"]
[WhiteElo "2097"]
[BlackElo "1943"]
[Annotator "NA RC"]
[PlyCount "91"]
[EventDate "2024.01.18"]
[EventType "team-tourn"]
[EventCountry "ESP"]
[SourceTitle "playchess.com"]
[Source "ChessBase"]
[SourceQuality "1"]
[TimeControl "5400+30"]

1. e4 {[%emt 1:31:00]} c6 {[%emt 0:00:52]} 2. d4 {[%emt 0:00:00]} d5 {[%emt 0:00:07]} 3. e5 {[%emt 0:01:00]} c5 {[%emt 1:31:01]} 4. dxc5 {[%emt 0:00:00]} e6 {[%emt 0:00:00]} 5. Nf3 {[%emt 0:01:00]} Bxc5 {[%emt 0:00:00]} 6. Bd3 {[%emt 0:00:30]} h6 {[%emt 0:01:30]} 7. Nbd2 {[%emt 0:00:30]} Nc6 {[%emt 0:00:00]} 8. Nb3 {[%emt 0:00:30]} Bb6 {[%emt 0:01:00]} 9. c3 {[%emt 0:00:30]} Bd7 {[%emt 0:00:30]} 10. O-O {[%emt 0:00:00]} g5 11. Re1 {[%emt 0:01:00]} f5 {[%emt 0:01:00]} 12. exf6 {[%emt 0:00:30]} Qxf6 {[%emt 0:00:30]} 13. Be3 {[%emt 0:00:30]} Nge7 14. Bxb6 axb6 15. Qe2 Kf7 16. Nbd4 g4 17. Ne5+ Nxe5 18. Qxe5 Qxe5 19. Rxe5 Nc6 20. Nxc6 bxc6 21. a3 c5 22. Rae1 Kf6 23. Bc2 b5 24. Bd1 Rag8 25. f3 gxf3 26. Bxf3 Rg5 27. R5e2 h5 28. h4 Rf5 29. Rf2 Bc6 30. Ref1 Ke7 31. Bd1 Rxf2 32. Rxf2 Be8 33. Rf3 Rh6 34. Rg3 Rg6 35. Re3 Rf6 36. Re5 Rf5 37. Rxf5 exf5 38. Kf2 Ke6 39. Ke3 Ke5 40. g3 d4+ 41. cxd4+ cxd4+ 42. Kf3 Bc6+ 43. Kf2 Be8 44. Kf3 Bc6+ 45. Kf2 Be8 46. Kf3 1/2-1/2

[Event "Lliga Catalana Relegation 2024"]
[Site "Catalonia"]
[Date "2024.04.06"]
[Round "1.10"]
[White "Martinez Lopez, Carlos"]
[Black "Mulet Polo, Pau"]
[Result "1-0"]
[ECO "B38"]
[WhiteElo "2022"]
[BlackElo "1844"]
[Annotator "RC"]
[PlyCount "85"]
[EventDate "2024.01.18"]
[EventType "team-tourn"]
[EventCountry "ESP"]
[SourceTitle "playchess.com"]
[Source "ChessBase"]
[SourceQuality "1"]
[TimeControl "5400+30"]

1. e4 {[%emt 0:00:03]} c5 {[%emt 0:00:12]} 2. Nf3 {[%emt 0:00:02]} Nc6 {[%emt 0:00:10]} 3. d4 {[%emt 0:00:03]} cxd4 {[%emt 0:00:10]} 4. Nxd4 {[%emt 0:00:01]} g6 {[%emt 0:00:16]} 5. c4 {[%emt 0:00:10]} Nf6 {[%emt 0:00:36]} 6. Nc3 {[%emt 0:00:02]} d6 {[%emt 0:00:22]} 7. Be2 {[%emt 0:00:15]} Bg7 {[%emt 0:00:12]} 8. Be3 {[%emt 0:00:49]} O-O {[%emt 0:00:21]} 9. O-O {[%emt 0:00:50]} Bd7 {[%emt 0:01:00]} 10. Re1 {[%emt 0:01:50]} Nxd4 {[%emt 0:01:46]} 11. Bxd4 {[%emt 0:00:03]} Bc6 {[%emt 0:00:43]} 12. Qc2 {[%emt 1:32:22]} a5 {[%emt 0:09:17]} 13. b3 {[%emt 0:00:00]} Nd7 {[%emt 0:01:17]} 14. Bxg7 {[%emt 0:00:00]} Kxg7 {[%emt 0:00:10]} 15. Rad1 {[%emt 0:00:00]} Qb6 {[%emt 0:05:15]} 16. Bf1 {[%emt 0:00:00]} Ne5 {[%emt 0:08:11]} 17. h3 {[%emt 0:00:00]} a4 {[%emt 0:19:19]} 18. Re3 {[%emt 0:00:00]} axb3 {[%emt 0:06:49]} 19. axb3 {[%emt 0:00:00]} Ra3 {[%emt 0:04:38]} 20. Nb1 {[%emt 0:00:00]} Ra1 {[%emt 0:03:55]} 21. Qc3 {[%emt 0:00:00]} Qa5 {[%emt 0:01:53]} 22. b4 {[%emt 0:00:00]} Qa2 {[%emt 0:00:25]} 23. Re2 {[%emt 0:00:00]} Qa7 {[%emt 0:05:39]} 24. c5 {[%emt 0:00:00]} f6 {[%emt 0:01:17]} 25. cxd6 {[%emt 0:00:00]} exd6 {[%emt 0:00:13]} 26. Ree1 {[%emt 0:00:00]} Rd8 {[%emt 0:04:35]} 27. b5 {[%emt 0:00:00]} Be8 {[%emt 0:00:55]} 28. b6 {[%emt 0:00:00]} Qa5 {[%emt 0:02:22]} 29. Qc7+ {[%emt 0:00:00]} Rd7 {[%emt 0:00:24]} 30. Qc8 {[%emt 0:00:00]} Bf7 {[%emt 0:00:30]} 31. Qc3 {[%emt 0:00:00]} Qxc3 {[%emt 0:00:59]} 32. Nxc3 {[%emt 0:00:00]} Rxd1 {[%emt 0:00:23]} 33. Rxd1 {[%emt 0:00:00]} Bb3 {[%emt 0:01:44]} 34. Rc1 {[%emt 0:00:00]} Kf7 {[%emt 0:02:00]} 35. f4 {[%emt 0:00:00]} Nc6 {[%emt 0:00:22]} 36. Bb5 {[%emt 0:00:00]} Rd8 {[%emt 0:00:44]} 37. Ne2 {[%emt 0:00:00]} d5 {[%emt 0:00:56]} 38. Bxc6 {[%emt 0:00:00]} bxc6 {[%emt 0:00:08]} 39. Nd4 {[%emt 0:00:00]} Ba4 {[%emt 0:01:26]} 40. Rxc6 {[%emt 0:00:00]} dxe4 {[%emt 0:01:21]} 41. Rc7+ {[%emt 0:00:00]} Kg8 {[%emt 0:00:15]} 42. b7 {[%emt 0:00:00]} Bd7 {[%emt 0:00:26]} 43. Rxd7 {[%emt 0:00:00]} 1-0

[Event "Lliga Catalana Relegation 2024"]
[Site "Catalonia"]
[Date "2024.04.06"]
[Round "1.10"]
[White "Mulet Polo, Pau"]
[Black "Martinez Lopez, Carlos"]
[Result "*"]
[ECO "B38"]
[WhiteElo "1844"]
[BlackElo "2022"]
[Annotator "NA RC"]
[PlyCount "31"]
[EventDate "2024.01.18"]
[EventType "team-tourn"]
[EventCountry "ESP"]
[SourceTitle "playchess.com"]
[Source "ChessBase"]
[SourceQuality "1"]
[TimeControl "5400+30"]

1. e4 {[%emt 0:00:03]} c5 {[%emt 0:00:12]} 2. Nf3 {[%emt 0:00:02]} Nc6 {[%emt 0:00:10]} 3. d4 {[%emt 0:00:03]} cxd4 {[%emt 0:00:10]} 4. Nxd4 {[%emt 0:00:01]} g6 {[%emt 0:00:16]} 5. c4 {[%emt 0:00:10]} Nf6 {[%emt 0:00:36]} 6. Nc3 {[%emt 0:00:02]} d6 {[%emt 0:00:22]} 7. Be2 {[%emt 0:00:15]} Bg7 {[%emt 0:00:12]} 8. Be3 {[%emt 0:00:49]} O-O {[%emt 0:00:21]} 9. O-O {[%emt 0:00:50]} Bd7 {[%emt 0:01:00]} 10. Re1 {[%emt 0:01:50]} Nxd4 {[%emt 0:01:46]} 11. Bxd4 {[%emt 0:00:03]} Bc6 {[%emt 0:00:43]} 12. Qc2 {[%emt 1:32:22]} a5 {[%emt 0:09:17]} 13. b3 {[%emt 0:00:00]} Nd7 {[%emt 0:01:17]} 14. Bxg7 {[%emt 0:00:00]} Kxg7 {[%emt 0:00:10]} 15. Rad1 {[%emt 0:00:00]} Qb6 {[%emt 0:05:15]} 16. Bf1 {[%emt 0:00:00]} *

[Event "Lliga Catalana Relegation 2024"]
[Site "Catalonia"]
[Date "2024.04.13"]
[Round "4.1"]
[White "Sabria Batlle, Pol"]
[Black "Gomez Anadon, Daniel"]
[Result "1/2-1/2"]
[ECO "B50"]
[WhiteElo "2290"]
[BlackElo "2138"]
[Annotator "RC"]
[PlyCount "35"]
[EventDate "2024.01.18"]
[EventType "team-tourn"]
[EventCountry "ESP"]
[SourceTitle "playchess.com"]
[Source "ChessBase"]
[SourceQuality "1"]
[TimeControl "5400+30"]

1. e4 {[%emt 0:00:02]} c5 {[%emt 0:00:12]} 2. Nf3 {[%emt 0:00:07]} d6 {[%emt 0:00:07]} 3. c3 {[%emt 0:01:06]} Nf6 {[%emt 0:00:27]} 4. h3 {[%emt 0:00:06]} g6 {[%emt 0:01:17]} 5. Bd3 {[%emt 0:00:10]} Bg7 {[%emt 0:01:03]} 6. Bc2 {[%emt 0:00:10]} O-O {[%emt 0:01:46]} 7. O-O {[%emt 0:00:05]} Nc6 {[%emt 0:00:42]} 8. d4 {[%emt 0:00:13]} cxd4 {[%emt 0:03:23]} 9. cxd4 {[%emt 0:00:51]} d5 {[%emt 0:00:29]} 10. e5 {[%emt 0:00:05]} Ne4 {[%emt 0:00:36]} 11. Nc3 {[%emt 0:00:04]} Nxc3 {[%emt 0:08:39]} 12. bxc3 {[%emt 0:00:07]} Na5 {[%emt 0:01:02]} 13. Re1 {[%emt 0:06:00]} Bd7 {[%emt 0:05:08]} 14. Ng5 {[%emt 1:28:24]} Rc8 {[%emt 1:12:39]} 15. Qf3 {[%emt 0:00:30]} Be6 {[%emt 0:00:30]} 16. h4 Qd7 {[%emt 0:00:30]} 17. Nxe6 {[%emt 0:01:00]} Qxe6 {[%emt 0:00:30]} 18. h5 1/2-1/2

[Event "Lliga Catalana Relegation 2024"]
[Site "Catalonia"]
[Date "2024.04.13"]
[Round "4.1"]
[White "Garcia Caro, Juan Alber"]
[Black "Luke Brezmes, Cristofer"]
[Result "1/2-1/2"]
[ECO "A46"]
[WhiteElo "2174"]
[BlackElo "2067"]
[Annotator "RC"]
[PlyCount "24"]
[EventDate "2024.01.18"]
[EventType "team-tourn"]
[EventCountry "ESP"]
[SourceTitle "playchess.com"]
[Source "ChessBase"]
[SourceQuality "1"]
[TimeControl "5400+30"]

1. d4 {[%emt 0:00:05]} d6 {[%emt 0:00:46]} 2. Nf3 {[%emt 0:01:34]} Nf6 {[%emt 0:00:13]} 3. Bg5 {[%emt 0:04:20]} Nbd7 {[%emt 0:03:20]} 4. Nbd2 {[%emt 0:03:05]} e5 {[%emt 0:04:58]} 5. e4 {[%emt 0:04:23]} Be7 {[%emt 0:02:44]} 6. Bc4 {[%emt 0:07:42]} c6 {[%emt 0:04:02]} 7. c3 {[%emt 0:02:22]} Qc7 {[%emt 0:01:24]} 8. h3 {[%emt 0:00:55]} b5 {[%emt 0:01:09]} 9. Bd3 {[%emt 0:01:14]} a6 {[%emt 0:00:51]} 10. O-O {[%emt 0:00:35]} h6 {[%emt 0:00:17]} 11. Be3 {[%emt 0:00:22]} g5 {[%emt 0:00:59]} 12. a4 {[%emt 0:04:54]} Rb8 {[%emt 1:15:47]} 1/2-1/2

[Event "Lliga Catalana Relegation 2024"]
[Site "Catalonia"]
[Date "2024.04.13"]
[Round "4.1"]
[White "Gonzalez Garcia, Marc"]
[Black "Aymerich Verdaguer, Eduard"]
[Result "1/2-1/2"]
[ECO "D00"]
[WhiteElo "2143"]
[BlackElo "2190"]
[Annotator "RC"]
[PlyCount "21"]
[EventDate "2024.01.18"]
[EventType "team-tourn"]
[EventCountry "ESP"]
[SourceTitle "playchess.com"]
[Source "ChessBase"]
[SourceQuality "1"]
[TimeControl "5400+30"]

1. d4 {[%emt 0:00:01]} Nf6 {[%emt 0:00:08]} 2. Nf3 {[%emt 0:00:13]} g6 {[%emt 0:00:40]} 3. Nc3 {[%emt 0:00:08]} d5 {[%emt 0:00:08]} 4. Bf4 {[%emt 0:00:13]} Bg7 {[%emt 0:01:14]} 5. Nb5 {[%emt 0:00:21]} Na6 {[%emt 0:00:06]} 6. e3 {[%emt 0:00:14]} Bg4 {[%emt 0:05:59]} 7. Be2 {[%emt 0:01:45]} Bxf3 {[%emt 0:01:32]} 8. Bxf3 {[%emt 0:02:57]} O-O {[%emt 0:00:54]} 9. O-O {[%emt 0:00:14]} c6 {[%emt 0:05:35]} 10. Nc3 {[%emt 0:05:03]} Re8 {[%emt 0:04:10]} 11. Nb1 {[%emt 0:15:59]} 1/2-1/2

[Event "Lliga Catalana Relegation 2024"]
[Site "Catalonia"]
[Date "2024.04.13"]
[Round "4.1"]
[White "Triadu Cassa, Jordi"]
[Black "Guerra Reig, Juan"]
[Result "1/2-1/2"]
[ECO "B17"]
[WhiteElo "2113"]
[BlackElo "2031"]
[Annotator "RC"]
[PlyCount "24"]
[EventDate "2024.01.18"]
[EventType "team-tourn"]
[EventCountry "ESP"]
[SourceTitle "playchess.com"]
[Source "ChessBase"]
[SourceQuality "1"]
[TimeControl "5400+30"]

1. e4 {[%emt 0:00:10]} c6 {[%emt 0:00:16]} 2. d4 {[%emt 0:00:14]} d5 {[%emt 0:00:05]} 3. Nc3 {[%emt 0:00:15]} dxe4 {[%emt 0:00:10]} 4. Nxe4 {[%emt 0:00:10]} Nd7 {[%emt 0:00:10]} 5. Bd3 {[%emt 0:04:12]} Ngf6 {[%emt 0:00:21]} 6. Ng5 {[%emt 0:00:43]} e6 {[%emt 0:08:26]} 7. N1f3 {[%emt 1:28:16]} h6 {[%emt 1:24:32]} 8. Ne4 {[%emt 0:00:00]} Nxe4 {[%emt 0:00:00]} 9. Bxe4 {[%emt 0:00:00]} Nf6 {[%emt 0:00:00]} 10. Bd3 {[%emt 0:00:00]} Bd6 {[%emt 0:00:00]} 11. Qe2 {[%emt 0:00:00]} Qc7 {[%emt 0:00:00]} 12. Bd2 {[%emt 0:00:00]} b6 {[%emt 0:00:00]} 1/2-1/2